[Event "Titled Tuesday Blitz June 21 Early 2022"]
[White "Borisova, Ekaterina"]
[Black "Chigaev, Maksim"]
[WhiteFideId "34124184"]
[BlackFideId "4108116"]
[WhiteElo "2039"]
[BlackElo "2457"]
[Result "0-1"]
[Round "07"]
[TimeControl "180+1"]
[Date "2022.06.21"]
[WhiteClock "0:00:01"]
[BlackClock "0:00:05"]

1. d4 {[%clk 0:02:50]}  Nf6 {[%clk 0:02:59]} 2. c4 {[%clk 0:02:50]}  e6 {[%clk 0:02:59]} 3. g3 {[%clk 0:02:50]}  d5 {[%clk 0:02:59]} 4. Nf3 {[%clk 0:02:50]}  Be7 {[%clk 0:02:54]} 5. Bg2 {[%clk 0:02:50]}  O-O {[%clk 0:02:54]} 6. O-O {[%clk 0:02:51]}  dxc4 {[%clk 0:02:54]} 7. Qc2 {[%clk 0:02:51]}  a6 {[%clk 0:02:53]} 8. a4 {[%clk 0:02:49]}  Nc6 {[%clk 0:02:53]} 9. Qxc4 {[%clk 0:02:48]}  Na5 {[%clk 0:02:54]} 10. Qc2 {[%clk 0:02:41]}  b6 {[%clk 0:02:55]} 11. Ne5 {[%clk 0:02:35]}  Bb7 {[%clk 0:02:52]} 12. Bxb7 {[%clk 0:02:33]}  Nxb7 {[%clk 0:02:53]} 13. Nc6 {[%clk 0:02:32]}  Qe8 {[%clk 0:02:54]} 14. Bg5 {[%clk 0:02:28]}  Bc5 {[%clk 0:02:25]} 15. Bxf6 {[%clk 0:02:15]}  gxf6 {[%clk 0:02:23]} 16. Qe4 {[%clk 0:02:08]}  f5 {[%clk 0:02:22]} 17. Qf3 {[%clk 0:02:05]}  Bd6 {[%clk 0:02:22]} 18. Nd2 {[%clk 0:02:00]}  f6 {[%clk 0:01:51]} 19. e3 {[%clk 0:01:49]}  Kh8 {[%clk 0:01:46]} 20. Rac1 {[%clk 0:01:48]}  Qd7 {[%clk 0:01:41]} 21. Rc2 {[%clk 0:01:41]}  Rae8 {[%clk 0:01:37]} 22. Rfc1 {[%clk 0:01:40]}  b5 {[%clk 0:00:52]} 23. axb5 {[%clk 0:01:36]}  axb5 {[%clk 0:00:53]} 24. Nb3 {[%clk 0:01:27]}  Ra8 {[%clk 0:00:49]} 25. Nb4 {[%clk 0:00:53]}  Na5 {[%clk 0:00:38]} 26. Nc5 {[%clk 0:00:33]}  Qe8 {[%clk 0:00:35]} 27. Nbd3 {[%clk 0:00:30]}  Nc4 {[%clk 0:00:33]} 28. b3 {[%clk 0:00:29]}  Nb6 {[%clk 0:00:32]} 29. e4 {[%clk 0:00:28]}  fxe4 {[%clk 0:00:30]} 30. Qxe4 {[%clk 0:00:28]}  e5 {[%clk 0:00:26]} 31. dxe5 {[%clk 0:00:27]}  fxe5 {[%clk 0:00:27]} 32. Re2 {[%clk 0:00:19]}  Qh5 {[%clk 0:00:22]} 33. Rce1 {[%clk 0:00:18]}  Rae8 {[%clk 0:00:21]} 34. Nb7 {[%clk 0:00:13]}  Nd7 {[%clk 0:00:21]} 35. Nxd6 {[%clk 0:00:11]}  cxd6 {[%clk 0:00:21]} 36. Nb4 {[%clk 0:00:10]}  Nf6 {[%clk 0:00:21]} 37. Qc6 {[%clk 0:00:10]}  Ng4 {[%clk 0:00:21]} 38. h4 {[%clk 0:00:10]}  Re6 {[%clk 0:00:16]} 39. Nd5 {[%clk 0:00:05]}  Rg6 {[%clk 0:00:16]} 40. Ne3 {[%clk 0:00:04]}  Nh6 {[%clk 0:00:13]} 41. Qe4 {[%clk 0:00:01]}  Ng8 {[%clk 0:00:11]} 42. Rd2 {[%clk 0:00:01]}  Nf6 {[%clk 0:00:11]} 43. Qc6 {[%clk 0:00:01]}  Qxh4 {[%clk 0:00:06]} 44. Kf1 {[%clk 0:00:01]}  Rxg3 {[%clk 0:00:05]} 0-1


[Site "https://www.chess.com"]

[Event "Titled Tuesday Blitz June 21 Early 2022"]
[White "Cherniaiev, Tykhon"]
[Black "Yilmaz, Mustafa"]
[WhiteFideId "14182360"]
[BlackFideId "6302718"]
[WhiteElo "2289"]
[BlackElo "2568"]
[Result "1-0"]
[Round "07"]
[TimeControl "180+1"]
[Date "2022.06.21"]
[WhiteClock "0:00:14"]
[BlackClock "0:00:09"]

1. Nf3 {[%clk 0:03:00]}  c5 {[%clk 0:02:58]} 2. c4 {[%clk 0:03:00]}  g6 {[%clk 0:02:54]} 3. g3 {[%clk 0:02:59]}  Bg7 {[%clk 0:02:53]} 4. Bg2 {[%clk 0:02:59]}  Nc6 {[%clk 0:02:54]} 5. O-O {[%clk 0:02:58]}  e6 {[%clk 0:02:53]} 6. Nc3 {[%clk 0:02:58]}  Nge7 {[%clk 0:02:54]} 7. d4 {[%clk 0:02:58]}  cxd4 {[%clk 0:02:37]} 8. Nb5 {[%clk 0:02:57]}  O-O {[%clk 0:02:29]} 9. Nbxd4 {[%clk 0:02:56]}  d5 {[%clk 0:02:16]} 10. cxd5 {[%clk 0:02:54]}  Nxd4 {[%clk 0:02:15]} 11. Nxd4 {[%clk 0:02:54]}  Nxd5 {[%clk 0:02:15]} 12. e4 {[%clk 0:02:44]}  Qb6 {[%clk 0:01:57]} 13. Nxe6 {[%clk 0:02:31]}  Nc3 {[%clk 0:01:40]} 14. bxc3 {[%clk 0:02:26]}  Bxe6 {[%clk 0:01:39]} 15. Be3 {[%clk 0:02:26]}  Qa6 {[%clk 0:01:34]} 16. Bd4 {[%clk 0:02:21]}  Rfd8 {[%clk 0:01:34]} 17. Qd2 {[%clk 0:02:21]}  Rac8 {[%clk 0:01:30]} 18. Rfd1 {[%clk 0:02:16]}  Bg4 {[%clk 0:01:23]} 19. f3 {[%clk 0:02:02]}  Be6 {[%clk 0:01:23]} 20. Qf2 {[%clk 0:01:59]}  Qa4 {[%clk 0:01:21]} 21. Rd2 {[%clk 0:01:12]}  Rc4 {[%clk 0:00:44]} 22. Rad1 {[%clk 0:01:06]}  Rdc8 {[%clk 0:00:40]} 23. f4 {[%clk 0:01:01]}  Bxd4 {[%clk 0:00:20]} 24. cxd4 {[%clk 0:00:55]}  Rc1 {[%clk 0:00:21]} 25. Bf3 {[%clk 0:00:46]}  Bxa2 {[%clk 0:00:20]} 26. Rxa2 {[%clk 0:00:23]}  Rxd1+ {[%clk 0:00:20]} 27. Kg2 {[%clk 0:00:16]}  Qxd4 {[%clk 0:00:17]} 28. Bxd1 {[%clk 0:00:16]}  Qxd1 {[%clk 0:00:18]} 29. Qxa7 {[%clk 0:00:14]}  Rc1 {[%clk 0:00:14]} 30. Qb8+ {[%clk 0:00:12]}  Kg7 {[%clk 0:00:12]} 31. Qe5+ {[%clk 0:00:13]}  f6 {[%clk 0:00:10]} 32. Qe7+ {[%clk 0:00:13]}  Kh6 {[%clk 0:00:11]} 33. Qf8+ {[%clk 0:00:13]}  Kh5 {[%clk 0:00:11]} 34. Ra5+ {[%clk 0:00:13]}  f5 {[%clk 0:00:09]} 35. Rxf5+ {[%clk 0:00:13]}  gxf5 {[%clk 0:00:09]} 36. Qxf5+ {[%clk 0:00:13]}  Kh6 {[%clk 0:00:09]} 37. Qg5# {[%clk 0:00:14]} 1-0


[Site "https://www.chess.com"]

[Event "Titled Tuesday Blitz June 21 Early 2022"]
[White "Chernomordik, Pavel"]
[Black "Jaferian, Koosha"]
[WhiteFideId "2804530"]
[BlackFideId "12507440"]
[WhiteElo "2220"]
[BlackElo "2030"]
[Result "0-1"]
[Round "07"]
[TimeControl "180+1"]
[Date "2022.06.21"]
[WhiteClock "0:00:48"]
[BlackClock "0:01:30"]

1. e4 {[%clk 0:03:00]}  c6 {[%clk 0:02:59]} 2. Nc3 {[%clk 0:03:00]}  d5 {[%clk 0:03:00]} 3. Nf3 {[%clk 0:02:59]}  Bg4 {[%clk 0:03:00]} 4. Be2 {[%clk 0:02:53]}  e6 {[%clk 0:03:00]} 5. O-O {[%clk 0:02:51]}  Nf6 {[%clk 0:03:00]} 6. Ne5 {[%clk 0:02:50]}  Bxe2 {[%clk 0:02:59]} 7. Qxe2 {[%clk 0:02:50]}  Nbd7 {[%clk 0:03:00]} 8. Nf3 {[%clk 0:02:49]}  dxe4 {[%clk 0:02:53]} 9. Nxe4 {[%clk 0:02:48]}  Nxe4 {[%clk 0:02:53]} 10. Qxe4 {[%clk 0:02:48]}  Nf6 {[%clk 0:02:54]} 11. Qe2 {[%clk 0:02:47]}  Bd6 {[%clk 0:02:54]} 12. d4 {[%clk 0:02:47]}  O-O {[%clk 0:02:54]} 13. h3 {[%clk 0:02:47]}  Qc7 {[%clk 0:02:54]} 14. c4 {[%clk 0:02:45]}  c5 {[%clk 0:02:55]} 15. Bg5 {[%clk 0:02:43]}  Nh5 {[%clk 0:02:46]} 16. d5 {[%clk 0:02:36]}  Rfe8 {[%clk 0:02:42]} 17. Qd3 {[%clk 0:02:26]}  Nf4 {[%clk 0:02:38]} 18. Bxf4 {[%clk 0:02:24]}  Bxf4 {[%clk 0:02:38]} 19. Rfe1 {[%clk 0:02:24]}  Rad8 {[%clk 0:02:34]} 20. Rad1 {[%clk 0:02:17]}  exd5 {[%clk 0:02:28]} 21. Rxe8+ {[%clk 0:02:13]}  Rxe8 {[%clk 0:02:29]} 22. cxd5 {[%clk 0:02:12]}  Qd6 {[%clk 0:02:23]} 23. Qb5 {[%clk 0:02:05]}  Re7 {[%clk 0:02:23]} 24. Qa4 {[%clk 0:01:52]}  a6 {[%clk 0:02:16]} 25. a3 {[%clk 0:01:48]}  b5 {[%clk 0:02:15]} 26. Qc2 {[%clk 0:01:47]}  c4 {[%clk 0:02:12]} 27. Qf5 {[%clk 0:01:45]}  g6 {[%clk 0:02:08]} 28. Qc8+ {[%clk 0:01:41]}  Kg7 {[%clk 0:02:08]} 29. a4 {[%clk 0:01:28]}  Be5 {[%clk 0:02:01]} 30. axb5 {[%clk 0:01:27]}  axb5 {[%clk 0:02:02]} 31. Rd2 {[%clk 0:01:26]}  Rc7 {[%clk 0:01:56]} 32. Qg4 {[%clk 0:01:21]}  Bf6 {[%clk 0:01:51]} 33. Qe4 {[%clk 0:01:11]}  b4 {[%clk 0:01:50]} 34. Nd4 {[%clk 0:01:10]}  c3 {[%clk 0:01:48]} 35. bxc3 {[%clk 0:01:09]}  bxc3 {[%clk 0:01:49]} 36. Rc2 {[%clk 0:01:08]}  Rc5 {[%clk 0:01:36]} 37. Ne2 {[%clk 0:00:51]}  Qxd5 {[%clk 0:01:31]} 38. Qe3 {[%clk 0:00:49]}  Qd1+ {[%clk 0:01:29]} 39. Kh2 {[%clk 0:00:48]}  Qxc2 {[%clk 0:01:30]} 0-1


[Site "https://www.chess.com"]

[Event "Titled Tuesday Blitz June 21 Early 2022"]
[White "Costachi, Mihnea"]
[Black "Jia, Haoxiang"]
[WhiteFideId "1217518"]
[BlackFideId "8602999"]
[WhiteElo "2476"]
[BlackElo "2615"]
[Result "1-0"]
[Round "07"]
[TimeControl "180+1"]
[Date "2022.06.21"]
[WhiteClock "0:00:14"]
[BlackClock "0:00:10"]

1. d4 {[%clk 0:03:00]}  d5 {[%clk 0:02:57]} 2. c4 {[%clk 0:03:00]}  c6 {[%clk 0:02:57]} 3. Nc3 {[%clk 0:03:00]}  Nf6 {[%clk 0:02:57]} 4. Nf3 {[%clk 0:03:01]}  dxc4 {[%clk 0:02:57]} 5. e4 {[%clk 0:03:01]}  b5 {[%clk 0:02:57]} 6. Be2 {[%clk 0:03:01]}  b4 {[%clk 0:02:50]} 7. Na4 {[%clk 0:03:01]}  Nxe4 {[%clk 0:02:49]} 8. Bxc4 {[%clk 0:03:01]}  e6 {[%clk 0:02:49]} 9. O-O {[%clk 0:03:00]}  Be7 {[%clk 0:02:48]} 10. Re1 {[%clk 0:03:01]}  Nd6 {[%clk 0:02:48]} 11. Bb3 {[%clk 0:03:00]}  Nd7 {[%clk 0:02:46]} 12. Bf4 {[%clk 0:02:56]}  O-O {[%clk 0:02:45]} 13. Rc1 {[%clk 0:02:56]}  Nb6 {[%clk 0:02:36]} 14. Ne5 {[%clk 0:02:19]}  Nxa4 {[%clk 0:02:14]} 15. Nxc6 {[%clk 0:02:08]}  Qe8 {[%clk 0:02:07]} 16. Bxa4 {[%clk 0:02:04]}  Bd7 {[%clk 0:02:08]} 17. Qd2 {[%clk 0:01:49]}  Nf5 {[%clk 0:01:48]} 18. d5 {[%clk 0:01:49]}  Bf6 {[%clk 0:01:23]} 19. dxe6 {[%clk 0:01:42]}  Bxe6 {[%clk 0:01:17]} 20. Qxb4 {[%clk 0:01:32]}  Kh8 {[%clk 0:00:57]} 21. b3 {[%clk 0:01:00]}  Rg8 {[%clk 0:00:47]} 22. Nxa7 {[%clk 0:00:55]}  Qf8 {[%clk 0:00:42]} 23. Qxf8 {[%clk 0:00:55]}  Rgxf8 {[%clk 0:00:42]} 24. Nb5 {[%clk 0:00:55]}  g5 {[%clk 0:00:39]} 25. Be5 {[%clk 0:00:54]}  Bxe5 {[%clk 0:00:36]} 26. Rxe5 {[%clk 0:00:54]}  Rad8 {[%clk 0:00:37]} 27. Nc3 {[%clk 0:00:48]}  Rd2 {[%clk 0:00:35]} 28. Re2 {[%clk 0:00:46]}  Rfd8 {[%clk 0:00:35]} 29. Rxd2 {[%clk 0:00:44]}  Rxd2 {[%clk 0:00:35]} 30. Ne4 {[%clk 0:00:42]}  Rxa2 {[%clk 0:00:34]} 31. Nxg5 {[%clk 0:00:43]}  Bd5 {[%clk 0:00:31]} 32. h3 {[%clk 0:00:33]}  h6 {[%clk 0:00:30]} 33. Rd1 {[%clk 0:00:30]}  Ne7 {[%clk 0:00:16]} 34. Re1 {[%clk 0:00:25]}  Ng6 {[%clk 0:00:12]} 35. Rd1 {[%clk 0:00:20]}  Ne7 {[%clk 0:00:12]} 36. Nf3 {[%clk 0:00:20]}  Bxf3 {[%clk 0:00:12]} 37. gxf3 {[%clk 0:00:21]}  Kg7 {[%clk 0:00:13]} 38. Bb5 {[%clk 0:00:20]}  Kf6 {[%clk 0:00:12]} 39. Bc4 {[%clk 0:00:21]}  Nf5 {[%clk 0:00:12]} 40. Rd7 {[%clk 0:00:21]}  Nd4 {[%clk 0:00:12]} 41. Rxd4 {[%clk 0:00:20]}  Ra1+ {[%clk 0:00:12]} 42. Kg2 {[%clk 0:00:20]}  Re1 {[%clk 0:00:12]} 43. Rf4+ {[%clk 0:00:21]}  Kg5 {[%clk 0:00:12]} 44. Rxf7 {[%clk 0:00:21]}  h5 {[%clk 0:00:12]} 45. f4+ {[%clk 0:00:22]}  Kh4 {[%clk 0:00:13]} 46. f5 {[%clk 0:00:20]}  Kg5 {[%clk 0:00:12]} 47. Rh7 {[%clk 0:00:19]}  Re5 {[%clk 0:00:12]} 48. Be6 {[%clk 0:00:18]}  Kh4 {[%clk 0:00:12]} 49. Bf7 {[%clk 0:00:17]}  Kg5 {[%clk 0:00:10]} 50. Rxh5+ {[%clk 0:00:18]}  Kf4 {[%clk 0:00:11]} 51. f6 {[%clk 0:00:16]}  Re2 {[%clk 0:00:10]} 52. Bc4 {[%clk 0:00:14]}  Re4 {[%clk 0:00:10]} 53. f7 {[%clk 0:00:14]} 1-0


[Site "https://www.chess.com"]

[Event "Titled Tuesday Blitz June 21 Early 2022"]
[White "Durarbayli, Vasif"]
[Black "Fedoseev, Vladimir"]
[WhiteFideId "13402935"]
[BlackFideId "24130737"]
[WhiteElo "2528"]
[BlackElo "2726"]
[Result "1/2-1/2"]
[Round "07"]
[TimeControl "180+1"]
[Date "2022.06.21"]
[WhiteClock "0:00:05"]
[BlackClock "0:00:02"]

1. e4 {[%clk 0:03:00]}  c6 {[%clk 0:02:41]} 2. Nf3 {[%clk 0:02:59]}  d5 {[%clk 0:02:40]} 3. Nc3 {[%clk 0:03:00]}  Bg4 {[%clk 0:02:39]} 4. h3 {[%clk 0:03:00]}  Bxf3 {[%clk 0:02:39]} 5. Qxf3 {[%clk 0:03:01]}  Nf6 {[%clk 0:02:35]} 6. Be2 {[%clk 0:02:51]}  e5 {[%clk 0:02:34]} 7. O-O {[%clk 0:02:44]}  Bb4 {[%clk 0:02:09]} 8. exd5 {[%clk 0:01:33]}  cxd5 {[%clk 0:02:04]} 9. Bb5+ {[%clk 0:01:26]}  Kf8 {[%clk 0:02:03]} 10. d4 {[%clk 0:01:15]}  e4 {[%clk 0:01:50]} 11. Qf5 {[%clk 0:01:02]}  Nc6 {[%clk 0:01:42]} 12. Bxc6 {[%clk 0:00:21]}  bxc6 {[%clk 0:01:41]} 13. Na4 {[%clk 0:00:22]}  Qd7 {[%clk 0:01:36]} 14. Qxd7 {[%clk 0:00:22]}  Nxd7 {[%clk 0:01:35]} 15. f3 {[%clk 0:00:17]}  Re8 {[%clk 0:01:28]} 16. fxe4 {[%clk 0:00:17]}  Rxe4 {[%clk 0:01:27]} 17. Bf4 {[%clk 0:00:18]}  f5 {[%clk 0:00:59]} 18. c3 {[%clk 0:00:14]}  Be7 {[%clk 0:00:58]} 19. b4 {[%clk 0:00:09]}  Kf7 {[%clk 0:00:56]} 20. Nb2 {[%clk 0:00:09]}  g5 {[%clk 0:00:50]} 21. Bd2 {[%clk 0:00:09]}  Ke6 {[%clk 0:00:50]} 22. Nd3 {[%clk 0:00:10]}  f4 {[%clk 0:00:44]} 23. Rae1 {[%clk 0:00:08]}  Bd6 {[%clk 0:00:38]} 24. Nf2 {[%clk 0:00:08]}  Rxe1 {[%clk 0:00:35]} 25. Rxe1+ {[%clk 0:00:09]}  Kf5 {[%clk 0:00:35]} 26. a4 {[%clk 0:00:08]}  Nf6 {[%clk 0:00:25]} 27. Rf1 {[%clk 0:00:03]}  Re8 {[%clk 0:00:23]} 28. g4+ {[%clk 0:00:02]}  Kg6 {[%clk 0:00:20]} 29. Re1 {[%clk 0:00:02]}  Ne4 {[%clk 0:00:16]} 30. Kg2 {[%clk 0:00:02]}  Kf7 {[%clk 0:00:16]} 31. Re2 {[%clk 0:00:02]}  Nxd2 {[%clk 0:00:13]} 32. Rxd2 {[%clk 0:00:03]}  Re3 {[%clk 0:00:13]} 33. Rd3 {[%clk 0:00:03]}  Re2 {[%clk 0:00:13]} 34. Kf3 {[%clk 0:00:01]}  Rc2 {[%clk 0:00:13]} 35. h4 {[%clk 0:00:01]}  h6 {[%clk 0:00:09]} 36. hxg5 {[%clk 0:00:01]}  hxg5 {[%clk 0:00:09]} 37. Nh3 {[%clk 0:00:02]}  Kf6 {[%clk 0:00:09]} 38. Nf2 {[%clk 0:00:02]}  Bc7 {[%clk 0:00:09]} 39. a5 {[%clk 0:00:03]}  Bd6 {[%clk 0:00:08]} 40. Nh3 {[%clk 0:00:03]}  Be7 {[%clk 0:00:06]} 41. Nf2 {[%clk 0:00:04]}  Ke6 {[%clk 0:00:07]} 42. Kg2 {[%clk 0:00:04]}  Kd7 {[%clk 0:00:07]} 43. Kf1 {[%clk 0:00:01]}  Kc7 {[%clk 0:00:07]} 44. Nd1 {[%clk 0:00:02]}  Rh2 {[%clk 0:00:04]} 45. Nf2 {[%clk 0:00:01]}  Kb7 {[%clk 0:00:03]} 46. Rh3 {[%clk 0:00:01]}  Rxh3 {[%clk 0:00:03]} 47. Nxh3 {[%clk 0:00:02]}  Ka6 {[%clk 0:00:04]} 48. Ke2 {[%clk 0:00:03]}  Kb5 {[%clk 0:00:04]} 49. Kd3 {[%clk 0:00:04]}  Ka4 {[%clk 0:00:05]} 50. Ng1 {[%clk 0:00:04]}  Kb3 {[%clk 0:00:05]} 51. Nf3 {[%clk 0:00:05]}  Bf6 {[%clk 0:00:05]} 52. Ne5 {[%clk 0:00:04]}  a6 {[%clk 0:00:03]} 53. Nxc6 {[%clk 0:00:04]}  f3 {[%clk 0:00:04]} 54. Nb8 {[%clk 0:00:04]}  f2 {[%clk 0:00:03]} 55. Ke2 {[%clk 0:00:05]}  Kxc3 {[%clk 0:00:03]} 56. Nxa6 {[%clk 0:00:06]}  Kc4 {[%clk 0:00:02]} 57. Nc7 {[%clk 0:00:04]}  Bxd4 {[%clk 0:00:01]} 58. b5 {[%clk 0:00:05]}  Be5 {[%clk 0:00:01]} 59. b6 {[%clk 0:00:05]}  Kc5 {[%clk 0:00:01]} 60. Ne6+ {[%clk 0:00:04]}  Kb5 {[%clk 0:00:01]} 61. b7 {[%clk 0:00:03]}  Kxa5 {[%clk 0:00:01]} 62. Nxg5 {[%clk 0:00:04]}  Kb6 {[%clk 0:00:01]} 63. Nf7 {[%clk 0:00:04]}  Bg3 {[%clk 0:00:02]} 64. Nd8 {[%clk 0:00:04]}  Kc7 {[%clk 0:00:01]} 65. g5 {[%clk 0:00:03]}  Kxd8 {[%clk 0:00:02]} 66. g6 {[%clk 0:00:01]}  Ke7 {[%clk 0:00:02]} 67. b8=Q {[%clk 0:00:02]}  Bxb8 {[%clk 0:00:01]} 68. Kxf2 {[%clk 0:00:03]}  Kf6 {[%clk 0:00:01]} 69. Ke3 {[%clk 0:00:03]}  Kxg6 {[%clk 0:00:02]} 70. Kd4 {[%clk 0:00:04]}  Kf5 {[%clk 0:00:02]} 71. Kxd5 {[%clk 0:00:05]} 1/2-1/2


[Site "https://www.chess.com"]

[Event "Titled Tuesday Blitz June 21 Early 2022"]
[White "Eggleston, Thomas A"]
[Black "Jakubowski, Krzysztof"]
[WhiteFideId "412139"]
[BlackFideId "1112848"]
[WhiteElo "2174"]
[BlackElo "2365"]
[Result "0-1"]
[Round "07"]
[TimeControl "180+1"]
[Date "2022.06.22"]
[WhiteClock "0:00:14"]
[BlackClock "0:00:02"]

1. e4 {[%clk 0:03:00]}  c6 {[%clk 0:02:59]} 2. d4 {[%clk 0:02:59]}  d5 {[%clk 0:02:58]} 3. exd5 {[%clk 0:03:00]}  cxd5 {[%clk 0:02:58]} 4. c4 {[%clk 0:03:01]}  Nf6 {[%clk 0:02:57]} 5. Nc3 {[%clk 0:03:01]}  e6 {[%clk 0:02:56]} 6. Nf3 {[%clk 0:03:01]}  Nc6 {[%clk 0:02:56]} 7. Bg5 {[%clk 0:02:58]}  Be7 {[%clk 0:02:55]} 8. Bd3 {[%clk 0:02:54]}  dxc4 {[%clk 0:02:52]} 9. Bxc4 {[%clk 0:02:54]}  O-O {[%clk 0:02:52]} 10. O-O {[%clk 0:02:54]}  Nb4 {[%clk 0:02:46]} 11. a3 {[%clk 0:02:49]}  Nbd5 {[%clk 0:02:44]} 12. Bd3 {[%clk 0:02:49]}  Bd7 {[%clk 0:02:39]} 13. Bc2 {[%clk 0:02:46]}  Rc8 {[%clk 0:02:35]} 14. Qd3 {[%clk 0:02:44]}  g6 {[%clk 0:02:28]} 15. Ne5 {[%clk 0:02:40]}  Nxc3 {[%clk 0:02:16]} 16. bxc3 {[%clk 0:02:40]}  Nd5 {[%clk 0:02:14]} 17. Bd2 {[%clk 0:02:36]}  b5 {[%clk 0:01:41]} 18. a4 {[%clk 0:02:31]}  bxa4 {[%clk 0:01:38]} 19. Rfb1 {[%clk 0:02:29]}  Bc6 {[%clk 0:01:25]} 20. c4 {[%clk 0:02:18]}  Nf6 {[%clk 0:01:17]} 21. Nxc6 {[%clk 0:02:06]}  Rxc6 {[%clk 0:01:16]} 22. Rxa4 {[%clk 0:02:00]}  Qc7 {[%clk 0:01:10]} 23. Rba1 {[%clk 0:01:47]}  a6 {[%clk 0:00:26]} 24. g3 {[%clk 0:01:46]}  Ra8 {[%clk 0:00:24]} 25. Bd1 {[%clk 0:01:39]}  Ra7 {[%clk 0:00:23]} 26. Bf3 {[%clk 0:01:38]}  Kg7 {[%clk 0:00:16]} 27. Bxc6 {[%clk 0:01:31]}  Qxc6 {[%clk 0:00:17]} 28. c5 {[%clk 0:01:25]}  h5 {[%clk 0:00:14]} 29. Rxa6 {[%clk 0:01:21]}  Rxa6 {[%clk 0:00:14]} 30. Rxa6 {[%clk 0:01:20]}  Qd5 {[%clk 0:00:13]} 31. Ra3 {[%clk 0:00:54]}  Ne4 {[%clk 0:00:10]} 32. Be3 {[%clk 0:00:51]}  Bf6 {[%clk 0:00:09]} 33. Qb3 {[%clk 0:00:41]}  Qf5 {[%clk 0:00:08]} 34. c6 {[%clk 0:00:36]}  h4 {[%clk 0:00:06]} 35. c7 {[%clk 0:00:32]}  h3 {[%clk 0:00:04]} 36. Bh6+ {[%clk 0:00:23]}  Kh7 {[%clk 0:00:04]} 37. Qe3 {[%clk 0:00:20]}  Nd6 {[%clk 0:00:03]} 38. Bf4 {[%clk 0:00:18]}  Qb1+ {[%clk 0:00:02]} 39. Qc1 {[%clk 0:00:16]}  Qe4 {[%clk 0:00:03]} 40. Bxd6 {[%clk 0:00:14]}  Qg2# {[%clk 0:00:02]} 0-1


[Site "https://www.chess.com"]

[Event "Titled Tuesday Blitz June 21 Early 2022"]
[White "Einarsson, Halldor Gretar"]
[Black "De Souza, Cristiano Gomes"]
[WhiteFideId "2300150"]
[BlackFideId "2151758"]
[WhiteElo "2114"]
[BlackElo "2068"]
[Result "1-0"]
[Round "07"]
[TimeControl "180+1"]
[Date "2022.06.22"]
[WhiteClock "0:00:18"]
[BlackClock "0:00:43"]

1. d4 {[%clk 0:03:00]}  Nf6 {[%clk 0:02:58]} 2. c4 {[%clk 0:03:00]}  g6 {[%clk 0:02:59]} 3. f3 {[%clk 0:02:59]}  d6 {[%clk 0:02:59]} 4. e4 {[%clk 0:02:57]}  Bg7 {[%clk 0:03:00]} 5. Nc3 {[%clk 0:02:57]}  O-O {[%clk 0:03:01]} 6. Be3 {[%clk 0:02:57]}  Nc6 {[%clk 0:03:01]} 7. Qd2 {[%clk 0:02:57]}  e5 {[%clk 0:02:55]} 8. Nge2 {[%clk 0:02:56]}  Rb8 {[%clk 0:02:51]} 9. Rc1 {[%clk 0:02:43]}  a6 {[%clk 0:02:47]} 10. Nd1 {[%clk 0:02:31]}  Bd7 {[%clk 0:02:42]} 11. g3 {[%clk 0:02:17]}  exd4 {[%clk 0:02:39]} 12. Nxd4 {[%clk 0:02:15]}  Re8 {[%clk 0:02:39]} 13. Bg2 {[%clk 0:02:12]}  Nxd4 {[%clk 0:02:29]} 14. Bxd4 {[%clk 0:02:10]}  Bc6 {[%clk 0:02:30]} 15. O-O {[%clk 0:02:04]}  Nh5 {[%clk 0:02:23]} 16. Ne3 {[%clk 0:01:49]}  Qd7 {[%clk 0:02:06]} 17. Rfd1 {[%clk 0:01:42]}  Bxd4 {[%clk 0:01:41]} 18. Qxd4 {[%clk 0:01:41]}  Ng7 {[%clk 0:01:34]} 19. Ng4 {[%clk 0:01:32]}  Nh5 {[%clk 0:01:27]} 20. Nh6+ {[%clk 0:00:57]}  Kf8 {[%clk 0:01:25]} 21. Qh8+ {[%clk 0:00:57]}  Ke7 {[%clk 0:01:25]} 22. Qxh7 {[%clk 0:00:57]}  Qe6 {[%clk 0:01:24]} 23. Bh3 {[%clk 0:00:36]}  Qf6 {[%clk 0:01:20]} 24. Ng4 {[%clk 0:00:27]}  Qxb2 {[%clk 0:01:06]} 25. Qh6 {[%clk 0:00:26]}  Bd7 {[%clk 0:00:58]} 26. Qg5+ {[%clk 0:00:25]}  Nf6 {[%clk 0:00:56]} 27. e5 {[%clk 0:00:24]}  Bxg4 {[%clk 0:00:45]} 28. Qxf6+ {[%clk 0:00:22]}  Kf8 {[%clk 0:00:44]} 29. Qh8+ {[%clk 0:00:19]}  Ke7 {[%clk 0:00:43]} 30. exd6+ {[%clk 0:00:18]} 1-0


[Site "https://www.chess.com"]

[Event "Titled Tuesday Blitz June 21 Early 2022"]
[White "Ferreira, Vitor Hugo Vieira"]
[Black "Bilych, Olexiy"]
[WhiteFideId "2119765"]
[BlackFideId "14156504"]
[WhiteElo "2165"]
[BlackElo "2189"]
[Result "0-1"]
[Round "07"]
[TimeControl "180+1"]
[Date "2022.06.22"]
[WhiteClock "0:00:15"]
[BlackClock "0:01:33"]

1. d4 {[%clk 0:02:54]}  Nf6 {[%clk 0:02:59]} 2. c4 {[%clk 0:02:54]}  e6 {[%clk 0:02:59]} 3. Nf3 {[%clk 0:02:54]}  d5 {[%clk 0:02:59]} 4. g3 {[%clk 0:02:54]}  Bb4+ {[%clk 0:02:59]} 5. Nbd2 {[%clk 0:02:51]}  O-O {[%clk 0:02:55]} 6. Bg2 {[%clk 0:02:52]}  dxc4 {[%clk 0:02:55]} 7. Qc2 {[%clk 0:02:48]}  b5 {[%clk 0:02:47]} 8. O-O {[%clk 0:02:48]}  Bb7 {[%clk 0:02:40]} 9. e4 {[%clk 0:02:36]}  Bxd2 {[%clk 0:02:35]} 10. Nxd2 {[%clk 0:02:36]}  Qxd4 {[%clk 0:02:35]} 11. a4 {[%clk 0:02:31]}  a6 {[%clk 0:02:32]} 12. Rd1 {[%clk 0:02:22]}  Rd8 {[%clk 0:02:26]} 13. Re1 {[%clk 0:02:02]}  Nc6 {[%clk 0:02:17]} 14. Nf3 {[%clk 0:02:01]}  Qc5 {[%clk 0:02:08]} 15. Bg5 {[%clk 0:01:58]}  Nb4 {[%clk 0:02:02]} 16. Qc3 {[%clk 0:01:58]}  Nxe4 {[%clk 0:01:56]} 17. Rxe4 {[%clk 0:01:58]}  Bxe4 {[%clk 0:01:55]} 18. Bxd8 {[%clk 0:01:58]}  Rxd8 {[%clk 0:01:56]} 19. axb5 {[%clk 0:01:48]}  axb5 {[%clk 0:01:55]} 20. h4 {[%clk 0:01:00]}  h6 {[%clk 0:01:55]} 21. Ne5 {[%clk 0:00:52]}  Bxg2 {[%clk 0:01:50]} 22. Kxg2 {[%clk 0:00:53]}  Nd3 {[%clk 0:01:42]} 23. Ng4 {[%clk 0:00:27]}  Qc6+ {[%clk 0:01:33]} 24. Kg1 {[%clk 0:00:23]}  Qf3 {[%clk 0:01:33]} 25. Nh2 {[%clk 0:00:14]}  Qxf2+ {[%clk 0:01:33]} 26. Kh1 {[%clk 0:00:15]}  Qxg3 {[%clk 0:01:33]} 0-1


[Site "https://www.chess.com"]